[Event "46th GRE-chT Premier 2018"]
[Site "Rio Achaia"]
[Date "2018.07.12"]
[Round "4"]
[White "Koutsogiannopoulou, Theodora"]
[Black "Pavlidou, Ekaterini"]
[Result "0-1"]
[ECO "B44"]
[WhiteElo "1852"]
[BlackElo "2186"]
[Annotator "NA"]
[PlyCount "80"]
[EventDate "2018.07.10"]
[EventType "team-tourn"]
[EventCountry "GRE"]
[SourceTitle "playchess.com"]
[Source "ChessBase"]
[SourceQuality "1"]
[TimeControl "40/5400+30:1800+30"]

1. e4 {[%emt 0:00:00]} c5 {[%emt 0:00:42]} 2. Nf3 {[%emt 0:00:00]} Nc6 {[%emt 0:00:11]} 3. d4 {[%emt 0:00:00]} cxd4 {[%emt 0:00:19]} 4. Nxd4 {[%emt 0:00:00]} e6 {[%emt 0:03:37]} 5. Nb5 {[%emt 0:07:08]} d6 {[%emt 0:01:38]} 6. c4 {[%emt 0:00:23]} a6 {[%emt 0:00:47]} 7. N5c3 {[%emt 0:00:22]} Be7 {[%emt 0:01:16]} 8. g3 {[%emt 0:01:08]} Nf6 {[%emt 0:01:32]} 9. Bg2 {[%emt 0:00:20]} Qc7 {[%emt 0:04:01]} 10. O-O {[%emt 0:02:09]} Bd7 {[%emt 0:08:43]} 11. Na3 {[%emt 0:06:58]} Ne5 {[%emt 0:04:06]} 12. Qe2 {[%emt 0:04:27]} Rc8 {[%emt 0:02:39]} 13. b3 {[%emt 0:06:00]} b5 {[%emt 0:05:38]} 14. f4 {[%emt 0:03:25]} b4 {[%emt 0:05:40]} 15. fxe5 {[%emt 0:15:33]} dxe5 {[%emt 0:05:40]} 16. Nab1 {[%emt 0:03:38]} bxc3 {[%emt 0:00:09]} 17. Nxc3 {[%emt 0:00:14]} Bc6 {[%emt 0:04:00]} 18. Bb2 {[%emt 0:08:47]} Bc5+ {[%emt 0:01:01]} 19. Kh1 {[%emt 0:00:41]} O-O {[%emt 0:05:24]} 20. Rad1 {[%emt 0:14:05]} Rfd8 {[%emt 0:01:45]} 21. h3 {[%emt 0:05:37]} Rxd1 {[%emt 0:07:05]} 22. Rxd1 {[%emt 0:00:47]} Rd8 {[%emt 0:02:57]} 23. Kh2 {[%emt 0:01:52]} h6 {[%emt 0:01:50]} 24. Bf3 {[%emt 0:03:41]} Rxd1 {[%emt 0:02:31]} 25. Qxd1 {[%emt 0:02:16]} Bd4 {[%emt 0:02:12]} 26. Qd3 {[%emt 0:01:38]} Qb6 {[%emt 0:01:50]} 27. Kg2 {[%emt 0:03:25]} Nd7 {[%emt 0:00:41]} 28. Qe2 {[%emt 0:04:17]} Qa5 {[%emt 0:04:25]} 29. Qc2 {[%emt 0:01:26]} Qb4 {[%emt 0:01:30]} 30. a3 {[%emt 0:00:33]} Qb7 {[%emt 0:00:11]} 31. Nd5 {[%emt 0:03:37]} exd5 {[%emt 0:03:08]} 32. exd5 {[%emt 0:00:08]} Ba4 {[%emt 0:00:27]} 33. Bxd4 {[%emt 0:00:31]} Bxb3 {[%emt 0:00:44]} 34. Qe4 {[%emt 0:00:43]} exd4 {[%emt 0:01:08]} 35. Qe8+ {[%emt 0:00:13]} Nf8 {[%emt 0:00:13]} 36. d6 {[%emt 0:00:36]} Qd7 {[%emt 0:00:21]} 37. Qxd7 {[%emt 0:00:26]} Nxd7 {[%emt 0:00:05]} 38. Bc6 {[%emt 0:00:56]} Ne5 {[%emt 0:00:13]} 39. Be8 {[%emt 0:00:45]} Kf8 {[%emt 0:03:08]} 40. d7 {[%emt 0:00:00]} Ke7 {[%emt 0:00:00]} 0-1

[Event "46th GRE-chT Premier 2018"]
[Site "Rio Achaia"]
[Date "2018.07.12"]
[Round "4"]
[White "Pasoglou, Ekaterini"]
[Black "Avramidou, Anastasia"]
[Result "1/2-1/2"]
[ECO "A46"]
[WhiteElo "1849"]
[BlackElo "2262"]
[Annotator "NA"]
[PlyCount "98"]
[EventDate "2018.07.10"]
[EventType "team-tourn"]
[EventCountry "GRE"]
[SourceTitle "playchess.com"]
[Source "ChessBase"]
[SourceQuality "1"]
[TimeControl "40/5400+30:1800+30"]

1. d4 {[%emt 0:00:00]} Nf6 {[%emt 0:00:04]} 2. Nf3 {[%emt 0:00:07]} e6 {[%emt 0:00:06]} 3. e3 {[%emt 0:00:12]} b6 {[%emt 0:00:05]} 4. Bd3 {[%emt 0:00:14]} Bb7 {[%emt 0:00:08]} 5. Nbd2 {[%emt 0:00:10]} d5 {[%emt 0:00:12]} 6. O-O {[%emt 0:01:03]} Bd6 {[%emt 0:00:20]} 7. b3 {[%emt 0:00:24]} O-O {[%emt 0:00:26]} 8. Bb2 {[%emt 0:00:15]} Nbd7 {[%emt 0:01:50]} 9. c4 {[%emt 0:00:54]} Qe7 {[%emt 0:00:32]} 10. Qe2 {[%emt 0:03:09]} e5 {[%emt 0:17:57]} 11. dxe5 {[%emt 0:03:44]} Nxe5 {[%emt 0:02:01]} 12. Nxe5 {[%emt 0:01:03]} Bxe5 {[%emt 0:00:05]} 13. Bxe5 {[%emt 0:02:13]} Qxe5 {[%emt 0:00:06]} 14. Nf3 {[%emt 0:02:16]} Qh5 {[%emt 0:03:49]} 15. Nd4 {[%emt 0:05:52]} Qxe2 {[%emt 0:03:46]} 16. Bxe2 {[%emt 0:01:02]} c5 {[%emt 0:18:26]} 17. Nf5 {[%emt 0:03:29]} Rad8 {[%emt 0:10:52]} 18. Ne7+ {[%emt 0:11:20]} Kh8 {[%emt 0:00:06]} 19. Nxd5 {[%emt 0:02:56]} Nxd5 {[%emt 0:13:09]} 20. cxd5 {[%emt 0:00:38]} Bxd5 {[%emt 0:00:04]} 21. Rfd1 {[%emt 0:01:14]} g6 {[%emt 0:06:35]} 22. Bc4 {[%emt 0:02:14]} Be6 {[%emt 0:02:04]} 23. Kf1 {[%emt 0:02:22]} Kg7 {[%emt 0:00:13]} 24. Ke2 {[%emt 0:00:33]} Kf6 {[%emt 0:00:50]} 25. Rxd8 {[%emt 0:06:06]} Rxd8 {[%emt 0:00:02]} 26. Rd1 {[%emt 0:00:44]} Rc8 {[%emt 0:02:39]} 27. f3 {[%emt 0:02:10]} Ke7 {[%emt 0:01:12]} 28. e4 {[%emt 0:02:11]} a6 {[%emt 0:00:08]} 29. Ke3 {[%emt 0:05:29]} Bxc4 {[%emt 0:01:52]} 30. bxc4 {[%emt 0:00:08]} b5 {[%emt 0:00:01]} 31. f4 {[%emt 0:05:51]} Rb8 {[%emt 0:04:41]} 32. Rd5 {[%emt 0:05:33]} bxc4 {[%emt 0:00:23]} 33. Rxc5 {[%emt 0:00:06]} Rb2 {[%emt 0:00:02]} 34. Rxc4 {[%emt 0:00:14]} Rxg2 {[%emt 0:03:30]} 35. Ra4 {[%emt 0:00:33]} Rxh2 {[%emt 0:00:04]} 36. Rxa6 {[%emt 0:00:05]} h5 {[%emt 0:00:05]} 37. Ra8 {[%emt 0:00:54]} Kf6 {[%emt 0:01:38]} 38. a4 {[%emt 0:02:36]} Ra2 {[%emt 0:02:32]} 39. Kf3 {[%emt 0:05:10]} Ra3+ {[%emt 0:00:35]} 40. Kf2 {[%emt 0:00:00]} h4 {[%emt 0:00:00]} 41. Kg2 {[%emt 0:04:20]} h3+ {[%emt 0:12:36]} 42. Kh2 {[%emt 0:00:44]} Rf3 {[%emt 0:00:05]} 43. Re8 {[%emt 0:02:20]} Rxf4 {[%emt 0:07:04]} 44. Kxh3 {[%emt 0:00:15]} Rf2 {[%emt 0:00:42]} 45. e5+ {[%emt 0:02:43]} Kg5 {[%emt 0:02:47]} 46. Re7 {[%emt 0:02:27]} Rf4 {[%emt 0:00:58]} 47. a5 {[%emt 0:00:27]} Ra4 {[%emt 0:00:04]} 48. Rxf7 {[%emt 0:00:36]} Rxa5 {[%emt 0:00:11]} 49. e6 {[%emt 0:00:34]} Re5 {[%emt 0:00:13]} 1/2-1/2

[Event "46th GRE-chT Premier 2018"]
[Site "Rio Achaia"]
[Date "2018.07.12"]
[Round "4"]
[White "Papadopoulos, Zisis"]
[Black "Samaridis, Konstantinos"]
[Result "1/2-1/2"]
[ECO "D37"]
[WhiteElo "1834"]
[BlackElo "2103"]
[Annotator "NA"]
[PlyCount "124"]
[EventDate "2018.07.10"]
[EventType "team-tourn"]
[EventCountry "GRE"]
[SourceTitle "playchess.com"]
[Source "ChessBase"]
[SourceQuality "1"]
[TimeControl "40/5400+30:1800+30"]

1. d4 {[%emt 0:01:01]} Nf6 {[%emt 0:00:00]} 2. c4 {[%emt 0:00:10]} e6 {[%emt 0:00:00]} 3. Nf3 {[%emt 0:00:10]} d5 {[%emt 0:00:00]} 4. Nc3 {[%emt 0:00:06]} dxc4 {[%emt 0:04:46]} 5. e3 {[%emt 0:00:13]} a6 {[%emt 0:00:06]} 6. a4 {[%emt 0:00:09]} c5 {[%emt 0:00:05]} 7. Bxc4 {[%emt 0:00:08]} Nc6 {[%emt 0:00:05]} 8. O-O {[%emt 0:00:44]} Be7 {[%emt 0:00:03]} 9. Qe2 {[%emt 0:01:28]} cxd4 {[%emt 0:00:10]} 10. Rd1 {[%emt 0:00:10]} e5 {[%emt 0:01:10]} 11. exd4 {[%emt 0:00:43]} exd4 {[%emt 0:01:07]} 12. Nxd4 {[%emt 0:01:11]} Nxd4 {[%emt 0:00:04]} 13. Qe5 {[%emt 0:00:05]} O-O {[%emt 0:01:54]} 14. Qxd4 {[%emt 0:00:14]} Qxd4 {[%emt 0:00:06]} 15. Rxd4 {[%emt 0:00:05]} Bc5 {[%emt 0:06:36]} 16. Rd1 {[%emt 0:04:22]} Bg4 {[%emt 0:05:28]} 17. Re1 {[%emt 0:04:39]} Rac8 {[%emt 0:02:51]} 18. Bf1 {[%emt 0:26:33]} Be6 {[%emt 0:08:37]} 19. Ne4 {[%emt 0:22:03]} Nxe4 {[%emt 0:11:25]} 20. Rxe4 {[%emt 0:00:08]} Rfd8 {[%emt 0:00:14]} 21. Be3 {[%emt 0:07:09]} Bd5 {[%emt 0:05:03]} 22. Re5 {[%emt 0:01:11]} Bd6 {[%emt 0:05:12]} 23. Rh5 {[%emt 0:01:22]} g6 {[%emt 0:00:47]} 24. Rh4 {[%emt 0:00:25]} Be7 {[%emt 0:12:13]} 25. Rd4 {[%emt 0:05:23]} Bf6 {[%emt 0:00:48]} 26. Rd2 {[%emt 0:03:28]} Bc6 {[%emt 0:00:36]} 27. Re2 {[%emt 0:03:05]} Rd5 {[%emt 0:11:26]} 28. Rc1 {[%emt 0:03:10]} Rcd8 {[%emt 0:01:06]} 29. b3 {[%emt 0:04:37]} Kg7 {[%emt 0:07:45]} 30. Ree1 {[%emt 0:01:15]} a5 {[%emt 0:06:35]} 31. Bc4 {[%emt 0:00:58]} R5d7 {[%emt 0:01:43]} 32. Bb6 {[%emt 0:00:32]} Ra8 {[%emt 0:00:10]} 33. Rcd1 {[%emt 0:01:16]} Rxd1 {[%emt 0:01:35]} 34. Rxd1 {[%emt 0:00:07]} Bc3 {[%emt 0:00:14]} 35. Rd8 {[%emt 0:02:31]} Rxd8 {[%emt 0:00:40]} 36. Bxd8 {[%emt 0:00:13]} Kf8 {[%emt 0:03:08]} 37. Bb6 {[%emt 0:01:45]} Bb4 {[%emt 0:00:17]} 38. Kf1 {[%emt 0:02:37]} Ke7 {[%emt 0:00:06]} 39. Be3 {[%emt 0:01:44]} Bd7 {[%emt 0:01:43]} 40. Ke2 {[%emt 0:00:00]} Be6 {[%emt 0:00:00]} 41. Kd3 {[%emt 0:04:27]} Kd6 {[%emt 0:10:08]} 42. Bxe6 {[%emt 0:14:42]} fxe6 {[%emt 0:00:05]} 43. Ke4 {[%emt 0:04:19]} e5 {[%emt 0:10:22]} 44. f3 {[%emt 0:03:43]} Ke6 {[%emt 0:00:36]} 45. Bb6 {[%emt 0:01:48]} Kd6 {[%emt 0:00:57]} 46. Bf2 {[%emt 0:01:23]} Bc3 {[%emt 0:03:19]} 47. Kd3 {[%emt 0:00:18]} Bb4 {[%emt 0:00:06]} 48. Kc4 {[%emt 0:00:54]} Kc6 {[%emt 0:00:07]} 49. Bg3 {[%emt 0:01:55]} Bd6 {[%emt 0:00:08]} 50. Be1 {[%emt 0:02:09]} b6 {[%emt 0:00:11]} 51. h3 {[%emt 0:00:58]} Be7 {[%emt 0:02:07]} 52. Bg3 {[%emt 0:00:36]} Bd6 {[%emt 0:00:06]} 53. Bh4 {[%emt 0:00:32]} Bc5 {[%emt 0:01:31]} 54. Bf6 {[%emt 0:00:17]} Bd6 {[%emt 0:00:56]} 55. Bd8 {[%emt 0:00:19]} Bc5 {[%emt 0:00:08]} 56. Bg5 {[%emt 0:00:37]} Bd6 {[%emt 0:01:00]} 57. Bd2 {[%emt 0:00:07]} Be7 {[%emt 0:01:41]} 58. g4 {[%emt 0:00:11]} h5 {[%emt 0:01:21]} 59. Bc3 {[%emt 0:01:07]} Bd6 {[%emt 0:00:52]} 60. Be1 {[%emt 0:00:41]} Bc5 {[%emt 0:01:17]} 61. Bg3 {[%emt 0:00:13]} Bd6 {[%emt 0:00:04]} 62. Bf2 {[%emt 0:00:08]} Bc7 {[%emt 0:00:32] Kd4 Kd5+} 1/2-1/2

[Event "46th GRE-chT Premier 2018"]
[Site "Rio Achaia"]
[Date "2018.07.12"]
[Round "4"]
[White "Sotiropoulos, Anastasios-Theohar"]
[Black "Serpetsidakis, Nikolaos"]
[Result "0-1"]
[ECO "A06"]
[WhiteElo "1834"]
[BlackElo "2087"]
[Annotator "NA"]
[PlyCount "90"]
[EventDate "2018.07.10"]
[EventType "team-tourn"]
[EventCountry "GRE"]
[SourceTitle "playchess.com"]
[Source "ChessBase"]
[SourceQuality "1"]
[TimeControl "40/5400+30:1800+30"]

1. Nf3 {[%emt 0:00:00]} d5 {[%emt 0:00:00]} 2. g3 {[%emt 0:00:00]} Bg4 {[%emt 0:00:23]} 3. Bg2 {[%emt 0:00:00]} Nd7 {[%emt 0:00:13]} 4. h3 {[%emt 0:00:14]} Bh5 {[%emt 0:01:05]} 5. d4 {[%emt 0:00:11]} e6 {[%emt 0:01:33]} 6. O-O {[%emt 0:00:19]} Ngf6 {[%emt 0:02:19]} 7. c4 {[%emt 0:00:21]} c6 {[%emt 0:00:22]} 8. cxd5 {[%emt 0:00:09]} exd5 {[%emt 0:01:46]} 9. Ne5 {[%emt 0:00:07]} Nxe5 {[%emt 0:14:12]} 10. dxe5 {[%emt 0:00:02]} Ne4 {[%emt 0:00:10]} 11. Nd2 {[%emt 0:00:38]} Nxd2 {[%emt 0:13:20]} 12. Bxd2 {[%emt 0:03:00]} Bc5 {[%emt 0:01:01]} 13. Kh2 {[%emt 0:00:16]} g5 {[%emt 0:21:02]} 14. Qc1 {[%emt 0:18:40]} Be7 {[%emt 0:01:20]} 15. e3 {[%emt 0:03:50]} g4 {[%emt 0:06:38]} 16. Qc2 {[%emt 0:08:42]} Qd7 {[%emt 0:04:54]} 17. Bc3 {[%emt 0:00:24]} Qe6 {[%emt 0:00:51]} 18. Qa4 {[%emt 0:04:53]} b5 {[%emt 0:03:30]} 19. Qb3 {[%emt 0:04:10]} Bg6 {[%emt 0:15:10]} 20. a4 {[%emt 0:13:18]} Bd3 {[%emt 0:04:56]} 21. Rfd1 {[%emt 0:03:24]} Be2 {[%emt 0:02:02]} 22. Rdc1 {[%emt 0:03:29]} gxh3 {[%emt 0:03:33]} 23. Qc2 {[%emt 0:05:37]} Bg4 {[%emt 0:00:37]} 24. Bh1 {[%emt 0:00:35]} b4 {[%emt 0:00:24]} 25. Bd4 {[%emt 0:00:20]} c5 {[%emt 0:00:25]} 26. Bxc5 {[%emt 0:01:07]} Rc8 {[%emt 0:00:06]} 27. Qd3 {[%emt 0:00:38]} O-O {[%emt 0:01:05]} 28. Bxe7 {[%emt 0:00:55]} Qxe7 {[%emt 0:00:02]} 29. Qxd5 {[%emt 0:01:01]} Rfd8 {[%emt 0:00:50]} 30. Qe4 {[%emt 0:00:11]} Be6 {[%emt 0:00:35]} 31. Rxc8 {[%emt 0:01:22]} Rxc8 {[%emt 0:00:10]} 32. Bf3 {[%emt 0:00:27]} Kg7 {[%emt 0:00:54]} 33. Bg4 {[%emt 0:01:36]} Rc4 {[%emt 0:00:01]} 34. Qd3 {[%emt 0:00:49]} Rxg4 {[%emt 0:00:13]} 35. e4 {[%emt 0:00:57]} Qc5 {[%emt 0:00:44]} 36. Qe2 {[%emt 0:00:38]} Qxe5 {[%emt 0:00:58]} 37. f4 {[%emt 0:00:33]} Qc7 {[%emt 0:00:32]} 38. Rg1 {[%emt 0:00:21]} Qc4 {[%emt 0:00:28]} 39. Qf3 {[%emt 0:02:17]} Qb3 {[%emt 0:00:22]} 40. Qe2 {[%emt 0:00:00]} h5 {[%emt 0:00:00]} 41. f5 {[%emt 0:01:26]} Bc4 {[%emt 0:04:12]} 42. f6+ {[%emt 0:02:13]} Kg6 {[%emt 0:03:13]} 43. Qf2 {[%emt 0:01:19]} Rxe4 {[%emt 0:00:38]} 44. Kxh3 {[%emt 0:02:34]} Re2 {[%emt 0:00:56]} 45. Qf4 {[%emt 0:00:32]} Be6+ {[%emt 0:00:08]} 0-1

[Event "46th GRE-chT Premier 2018"]
[Site "Rio Achaia"]
[Date "2018.07.12"]
[Round "4"]
[White "Malataras, Gerasimos"]
[Black "Symeonidis, Theofilos"]
[Result "1-0"]
[ECO "E46"]
[WhiteElo "1823"]
[BlackElo "1605"]
[Annotator "NA"]
[PlyCount "39"]
[EventDate "2018.07.10"]
[EventType "team-tourn"]
[EventCountry "GRE"]
[SourceTitle "playchess.com"]
[Source "ChessBase"]
[SourceQuality "1"]
[TimeControl "40/5400+30:1800+30"]

1. d4 {[%emt 0:00:00]} Nf6 {[%emt 0:00:00]} 2. c4 {[%emt 0:00:00]} e6 {[%emt 0:00:00]} 3. Nc3 {[%emt 0:00:00]} Bb4 {[%emt 0:00:34]} 4. e3 {[%emt 0:00:00]} O-O {[%emt 0:00:46]} 5. Nge2 {[%emt 0:00:15]} d5 {[%emt 0:00:09]} 6. a3 {[%emt 0:00:11]} Be7 {[%emt 0:00:05]} 7. cxd5 {[%emt 0:00:12]} exd5 {[%emt 0:01:08]} 8. Nf4 {[%emt 0:00:21]} c6 {[%emt 0:00:15]} 9. Bd3 {[%emt 0:00:24]} Nbd7 {[%emt 0:01:12]} 10. O-O {[%emt 0:00:19]} Re8 {[%emt 0:10:12]} 11. f3 {[%emt 0:00:37]} Bf8 {[%emt 0:02:03]} 12. b4 {[%emt 0:06:01]} Nb6 {[%emt 0:08:55]} 13. Bc2 {[%emt 0:14:53]} a5 {[%emt 0:10:08]} 14. Rb1 {[%emt 0:01:22]} axb4 {[%emt 0:02:46]} 15. axb4 {[%emt 0:00:06]} Nc4 {[%emt 0:02:57]} 16. Qd3 {[%emt 0:01:37]} Na3 {[%emt 0:06:23]} 17. Bxa3 {[%emt 0:00:11]} Rxa3 {[%emt 0:00:06]} 18. Nh5 {[%emt 0:00:41]} g6 {[%emt 0:01:38]} 19. Nxf6+ {[%emt 0:00:05]} Qxf6 {[%emt 0:00:08]} 20. Nxd5 {[%emt 0:00:11]} 1-0

[Event "46th GRE-chT Premier 2018"]
[Site "Rio Achaia"]
[Date "2018.07.12"]
[Round "4"]
[White "Kafetzi, Angeliki"]
[Black "Grammatikaki, Aggeliki"]
[Result "1-0"]
[ECO "A46"]
[WhiteElo "1815"]
[BlackElo "1679"]
[Annotator "NA"]
[PlyCount "73"]
[EventDate "2018.07.10"]
[EventType "team-tourn"]
[EventCountry "GRE"]
[SourceTitle "playchess.com"]
[Source "ChessBase"]
[SourceQuality "1"]
[TimeControl "40/5400+30:1800+30"]

1. d4 {[%emt 0:00:00]} Nf6 {[%emt 0:00:00]} 2. Nf3 {[%emt 0:00:00]} e6 {[%emt 0:00:00]} 3. Bg5 {[%emt 0:00:04]} d5 {[%emt 0:01:06]} 4. e3 {[%emt 0:00:25]} b6 {[%emt 0:01:38]} 5. Bd3 {[%emt 0:01:18]} Bb7 {[%emt 0:00:17]} 6. Nbd2 {[%emt 0:01:36]} Be7 {[%emt 0:03:11]} 7. O-O {[%emt 0:01:21]} O-O {[%emt 0:02:09]} 8. Ne5 {[%emt 0:08:00]} Nbd7 {[%emt 0:09:55]} 9. f4 {[%emt 0:04:11]} Ne4 {[%emt 0:07:07]} 10. Bxe7 {[%emt 0:03:21]} Qxe7 {[%emt 0:00:08]} 11. Nxd7 {[%emt 0:01:54]} Qxd7 {[%emt 0:08:51]} 12. Nf3 {[%emt 0:07:27]} c5 {[%emt 0:06:15]} 13. dxc5 {[%emt 0:18:11]} Nxc5 {[%emt 0:28:41]} 14. Ne5 {[%emt 0:05:52]} Qe8 {[%emt 0:08:44]} 15. Be2 {[%emt 0:11:41]} f6 {[%emt 0:03:20]} 16. Nd3 {[%emt 0:02:00]} Ne4 {[%emt 0:03:54]} 17. Bf3 {[%emt 0:07:43]} Rc8 {[%emt 0:01:19]} 18. c3 {[%emt 0:02:01]} Ba6 {[%emt 0:01:35]} 19. Re1 {[%emt 0:02:02]} Rf7 {[%emt 0:07:27]} 20. Nb4 {[%emt 0:03:37]} Bb7 {[%emt 0:00:08]} 21. Bxe4 {[%emt 0:04:45]} dxe4 {[%emt 0:00:04]} 22. a4 {[%emt 0:02:15]} Rd7 {[%emt 0:00:42]} 23. Qe2 {[%emt 0:01:15]} Rcd8 {[%emt 0:00:28]} 24. Red1 {[%emt 0:01:58]} a5 {[%emt 0:01:20]} 25. Rxd7 {[%emt 0:01:00]} Qxd7 {[%emt 0:00:21]} 26. Nc2 {[%emt 0:00:48]} Qd2 {[%emt 0:01:45]} 27. Qxd2 {[%emt 0:01:40]} Rxd2 {[%emt 0:00:04]} 28. Rc1 {[%emt 0:02:55]} Ba6 {[%emt 0:01:09]} 29. b3 {[%emt 0:01:58]} Bd3 {[%emt 0:00:35]} 30. Nd4 {[%emt 0:01:11]} Kf7 {[%emt 0:00:42]} 31. c4 {[%emt 0:01:08]} Rb2 {[%emt 0:00:29]} 32. c5 {[%emt 0:00:33]} bxc5 {[%emt 0:00:17]} 33. Rxc5 {[%emt 0:00:11]} Rb1+ {[%emt 0:00:52]} 34. Kf2 {[%emt 0:00:09]} Rf1+ {[%emt 0:00:22]} 35. Kg3 {[%emt 0:00:15]} Re1 {[%emt 0:00:16]} 36. Kf2 {[%emt 0:01:03]} Rf1+ {[%emt 0:00:06]} 37. Kg3 {[%emt 0:00:14]} 1-0

[Event "46th GRE-chT Premier 2018"]
[Site "Rio Achaia"]
[Date "2018.07.12"]
[Round "4"]
[White "Georgitsi, Antigoni"]
[Black "Daniilidi, Dimitra Lydia"]
[Result "1-0"]
[ECO "A36"]
[WhiteElo "1811"]
[BlackElo "1174"]
[Annotator "NA"]
[PlyCount "103"]
[EventDate "2018.07.10"]
[EventType "team-tourn"]
[EventCountry "GRE"]
[SourceTitle "playchess.com"]
[Source "ChessBase"]
[SourceQuality "1"]
[TimeControl "40/5400+30:1800+30"]

1. c4 c5 {[%emt 0:00:00]} 2. Nc3 {[%emt 0:02:47]} Nc6 {[%emt 0:00:03]} 3. g3 {[%emt 0:00:07]} g6 {[%emt 0:00:07]} 4. Bg2 {[%emt 0:00:18]} Bg7 {[%emt 0:00:17]} 5. d3 {[%emt 0:00:08]} d6 {[%emt 0:00:09]} 6. e4 {[%emt 0:00:33]} Nf6 {[%emt 0:00:18]} 7. Nge2 {[%emt 0:00:39]} O-O {[%emt 0:00:15]} 8. O-O {[%emt 0:00:42]} Ne8 {[%emt 0:01:13]} 9. Be3 {[%emt 0:02:11]} Nd4 {[%emt 0:00:47]} 10. Qd2 {[%emt 0:04:53]} Nc7 {[%emt 0:00:44]} 11. f4 {[%emt 0:01:31]} Bg4 {[%emt 0:02:04]} 12. h3 {[%emt 0:07:22]} Nxe2+ {[%emt 0:01:44]} 13. Nxe2 {[%emt 0:00:24]} Bxe2 {[%emt 0:00:33]} 14. Qxe2 {[%emt 0:00:07]} Ne6 {[%emt 0:00:25]} 15. f5 {[%emt 0:02:38]} Nd4 {[%emt 0:01:49]} 16. Qd2 {[%emt 0:02:09]} Qd7 {[%emt 0:18:02]} 17. h4 {[%emt 0:13:09]} h5 {[%emt 0:12:57]} 18. Bh6 {[%emt 0:06:32]} Kh7 {[%emt 0:03:08]} 19. Bxg7 {[%emt 0:03:11]} Kxg7 {[%emt 0:00:08]} 20. Qg5 {[%emt 0:03:02]} Kh7 {[%emt 0:09:51]} 21. Rf2 {[%emt 0:04:33]} Rg8 {[%emt 0:11:17]} 22. Bh3 {[%emt 0:08:44]} Qe8 {[%emt 0:05:19]} 23. fxg6+ {[%emt 0:04:50]} fxg6 {[%emt 0:00:24]} 24. Raf1 {[%emt 0:01:43]} Rg7 {[%emt 0:11:00]} 25. Qd5 {[%emt 0:05:33]} Nc6 {[%emt 0:01:49]} 26. Be6 {[%emt 0:06:22]} Ne5 {[%emt 0:03:44]} 27. Qxb7 {[%emt 0:05:10]} Nxd3 {[%emt 0:01:07]} 28. Rf7 {[%emt 0:02:59]} Ne5 {[%emt 0:00:40]} 29. Rxg7+ {[%emt 0:03:03]} Kxg7 {[%emt 0:00:07]} 30. Qd5 {[%emt 0:00:53]} Rb8 {[%emt 0:05:25]} 31. b3 {[%emt 0:00:35]} Rb6 {[%emt 0:04:08]} 32. Qd2 {[%emt 0:01:42]} Qc6 {[%emt 0:01:18]} 33. Qg5 {[%emt 0:02:28]} Qc7 {[%emt 0:00:50]} 34. g4 {[%emt 0:03:48]} hxg4 {[%emt 0:01:36]} 35. h5 {[%emt 0:00:52]} Qd8 {[%emt 0:02:13]} 36. Bxg4 {[%emt 0:01:17]} Nxg4 {[%emt 0:00:17]} 37. Qxg6+ {[%emt 0:00:18]} Kh8 {[%emt 0:00:22]} 38. Qxg4 {[%emt 0:00:33]} Qg8 {[%emt 0:00:25]} 39. Rf4 {[%emt 0:00:42]} Qxg4+ {[%emt 0:00:15]} 40. Rxg4 {[%emt 0:00:00]} Rb8 {[%emt 0:00:00]} 41. Kf2 {[%emt 0:07:15]} Kh7 {[%emt 0:01:11]} 42. e5 {[%emt 0:05:30]} Rf8+ {[%emt 0:01:35]} 43. Ke3 {[%emt 0:00:26]} Rd8 {[%emt 0:06:17]} 44. exd6 {[%emt 0:01:53]} exd6 {[%emt 0:02:32]} 45. Ke4 {[%emt 0:00:37]} Kh6 {[%emt 0:00:51]} 46. Kd5 {[%emt 0:00:55]} Kxh5 {[%emt 0:00:20]} 47. Rg7 {[%emt 0:00:15]} a5 {[%emt 0:01:30]} 48. Ra7 {[%emt 0:01:00]} Kg6 {[%emt 0:00:30]} 49. Ke6 {[%emt 0:00:51]} Kg5 {[%emt 0:01:08]} 50. Ke7 {[%emt 0:00:42]} Rh8 {[%emt 0:02:06]} 51. Kxd6 {[%emt 0:00:19]} Rc8 {[%emt 0:00:42]} 52. Rxa5 {[%emt 0:00:23]} 1-0

[Event "46th GRE-chT Premier 2018"]
[Site "Rio Achaia"]
[Date "2018.07.12"]
[Round "4"]
[White "Liapi Zenebisi, Irini"]
[Black "Nikolaidou, Maria"]
[Result "1-0"]
[ECO "B01"]
[WhiteElo "1788"]
[BlackElo "1239"]
[Annotator "NA"]
[PlyCount "45"]
[EventDate "2018.07.10"]
[EventType "team-tourn"]
[EventCountry "GRE"]
[SourceTitle "playchess.com"]
[Source "ChessBase"]
[SourceQuality "1"]
[TimeControl "40/5400+30:1800+30"]

1. e4 {[%emt 0:00:00]} d5 {[%emt 0:00:00]} 2. exd5 {[%emt 0:00:00]} Qxd5 {[%emt 0:00:00]} 3. Nc3 {[%emt 0:00:00]} Qd8 {[%emt 0:00:31]} 4. d4 {[%emt 0:00:00]} Nf6 {[%emt 0:00:37]} 5. Nf3 {[%emt 0:01:35]} c6 {[%emt 0:02:00]} 6. h3 {[%emt 0:00:25]} e6 {[%emt 0:05:44]} 7. Bd2 {[%emt 0:15:55]} Bd6 {[%emt 0:02:29]} 8. Bc4 {[%emt 0:02:04]} O-O {[%emt 0:03:13]} 9. g4 {[%emt 0:00:22]} Nbd7 {[%emt 0:01:59]} 10. Qe2 {[%emt 0:01:50]} e5 {[%emt 0:06:12]} 11. dxe5 {[%emt 0:07:20]} Nxe5 {[%emt 0:00:55]} 12. Nxe5 {[%emt 0:00:34]} Bxe5 {[%emt 0:00:26]} 13. O-O-O {[%emt 0:00:10]} Qd4 {[%emt 0:20:29]} 14. Be3 {[%emt 0:01:22]} Bxg4 {[%emt 0:13:17]} 15. Bxd4 {[%emt 0:03:17]} Bf4+ {[%emt 0:09:11]} 16. Kb1 {[%emt 0:00:51]} Bxe2 {[%emt 0:00:07]} 17. Nxe2 {[%emt 0:00:40]} Bg5 {[%emt 0:03:10]} 18. h4 {[%emt 0:03:10]} Bh6 {[%emt 0:01:24]} 19. Ng3 {[%emt 0:02:55]} Bf4 {[%emt 0:05:53]} 20. Nf5 {[%emt 0:00:48]} Nh5 {[%emt 0:00:33]} 21. Rhg1 {[%emt 0:00:16]} Rad8 {[%emt 0:03:58]} 22. Nxg7 {[%emt 0:00:26]} Rxd4 {[%emt 0:00:38]} 23. Nxh5+ {[%emt 0:00:15]} 1-0